fUST/lending_fUST_20251208
["ID","MTS","AMOUNT","RATE_DAILY","PERIOD"]
[397169686,1765155033367,-1510.06,9.658e-05,2]
[397169688,1765155033376,-500.0,9.658e-05,2]
[397169690,1765155033385,-812.12,9.658e-05,2]
[397169692,1765155033395,-948.58,9.658e-05,2]
[397169693,1765155033404,-1996.46,9.658e-05,2]
[397169694,1765155033413,-500.0,9.658e-05,2]
[397169695,1765155033422,-500.0,9.658e-05,2]
[397169696,1765155033431,-500.0,9.658e-05,2]
[397169697,1765155033440,-484.85468278,9.658e-05,2]
[397169698,1765155033449,-500.0,9.658e-05,2]
[397169699,1765155033459,-4555.52,9.658e-05,2]
[397169700,1765155033469,-2012.32,9.658e-05,2]
[397169701,1765155033478,-500.0,9.658e-05,2]
[397169702,1765155033487,-853.09,9.658e-05,2]
[397169703,1765155033496,-500.0,9.658e-05,2]
[397169704,1765155033506,-518.64,9.658e-05,2]
[397169705,1765155033515,-500.0,9.658e-05,2]
[397169706,1765155033524,-500.0,9.658e-05,2]
[397169707,1765155033534,-1651.15,9.658e-05,2]
[397169708,1765155033544,-500.0,9.658e-05,2]
[397169709,1765155033553,-707.21,9.658e-05,2]
[397169710,1765155033562,-7552.03,9.658e-05,2]
[397169711,1765155033571,-593.86,9.658e-05,2]
[397169712,1765155033580,-688.58,9.658e-05,2]
[397169713,1765155033590,-1218.94,9.658e-05,2]
[397169714,1765155033599,-828.0,9.658e-05,2]
[397169715,1765155033609,-500.0,9.658e-05,2]
[397169716,1765155033620,-1250.38,9.658e-05,2]
[397169717,1765155033630,-500.0,9.658e-05,2]
[397169718,1765155033639,-1123.54,9.658e-05,2]
[397169719,1765155033648,-4419.66,9.658e-05,2]
[397169720,1765155033658,-2693.14,9.658e-05,2]
[397169721,1765155033668,-500.0,9.658e-05,2]
[397169722,1765155033677,-500.0,9.658e-05,2]
[397169723,1765155033688,-632.23,9.658e-05,2]
[397169724,1765155033698,-500.0,9.658e-05,2]
[397169725,1765155033707,-1474.06,9.658e-05,2]
[397169726,1765155033716,-500.0,9.658e-05,2]
[397169727,1765155033726,-500.0,9.658e-05,2]
[397169728,1765155033735,-1566.9,9.658e-05,2]
[397169729,1765155033744,-500.0,9.658e-05,2]
[397169730,1765155033753,-1065.38,9.658e-05,2]
[397169731,1765155033763,-500.0,9.658e-05,2]
[397169732,1765155033772,-1245.91,9.658e-05,2]
[397169733,1765155033782,-500.0,9.658e-05,2]
[397169734,1765155033791,-2033.25,9.658e-05,2]
[397169735,1765155033801,-500.0,9.658e-05,2]
[397169736,1765155033811,-199.62914924,9.658e-05,2]
[397169737,1765155033820,-1744.36,9.658e-05,2]
[397169738,1765155033830,-500.0,9.658e-05,2]
[397169739,1765155033839,-500.0,9.658e-05,2]
[397169740,1765155033848,-1205.72,9.659e-05,2]
[397169741,1765155033858,-1517.1,9.659e-05,2]
[397169742,1765155033867,-500.0,9.659e-05,2]
[397169743,1765155033876,-635.55,9.659e-05,2]
[397169744,1765155033886,-500.0,9.659e-05,2]
[397169745,1765155033896,-651.52,9.659e-05,2]
[397169746,1765155033905,-675.12,9.659e-05,2]
[397169747,1765155033916,-500.0,9.659e-05,2]
[397169748,1765155033926,-573.78,9.659e-05,2]
[397169749,1765155033935,-598.91,9.659e-05,2]
[397169750,1765155033945,-655.06,9.659e-05,2]
[397169751,1765155033955,-500.0,9.659e-05,2]
[397169752,1765155033964,-500.0,9.659e-05,2]
[397169753,1765155033973,-2479.96,9.659e-05,2]
[397169754,1765155033983,-500.0,9.659e-05,2]
[397169755,1765155033993,-500.0,9.659e-05,2]
[397169756,1765155034002,-500.0,9.659e-05,2]
[397169757,1765155034012,-1586.79,9.659e-05,2]
[397169758,1765155034021,-643.25,9.659e-05,2]
[397169759,1765155034030,-500.0,9.659e-05,2]
[397169760,1765155034039,-500.0,9.659e-05,2]
[397169761,1765155034048,-500.0,9.659e-05,2]
[397169762,1765155034057,-500.0,9.659e-05,2]
[397169763,1765155034067,-500.0,9.659e-05,2]
[397169764,1765155034076,-1105.51,9.659e-05,2]
[397169765,1765155034085,-724.64,9.659e-05,2]
[397169766,1765155034094,-1076.28,9.659e-05,2]
[397169767,1765155034104,-1053.25,9.659e-05,2]
[397169768,1765155034113,-500.0,9.659e-05,2]
[397169769,1765155034122,-613.59,9.659e-05,2]
[397169770,1765155034131,-1245.12,9.659e-05,2]
[397169771,1765155034140,-500.0,9.659e-05,2]
[397169772,1765155034149,-500.0,9.659e-05,2]
[397169773,1765155034158,-1427.87,9.659e-05,2]
[397169774,1765155034167,-1159.43,9.659e-05,2]
[397169775,1765155034176,-500.0,9.659e-05,2]
[397169776,1765155034185,-2336.35,9.659e-05,2]
[397169777,1765155034194,-1368.67,9.659e-05,2]
[397169778,1765155034203,-500.0,9.659e-05,2]
[397169779,1765155034213,-856.74,9.659e-05,2]
[397169780,1765155034222,-508.862523,9.659e-05,2]
[397169781,1765155034231,-596.40028563,9.659e-05,2]
[397169782,1765155034241,-1511.37,9.659e-05,2]
[397169783,1765155034250,-775.26,9.659e-05,2]
[397169784,1765155034259,-2340.81,9.659e-05,2]
[397169785,1765155034268,-551.29,9.659e-05,2]
[397169786,1765155034278,-533.14,9.659e-05,2]
[397169787,1765155034287,-500.0,9.659e-05,2]
[397169788,1765155034296,-1957.28,9.659e-05,2]
[397169789,1765155034305,-1934.84,9.659e-05,2]
[397169790,1765155034314,-500.0,9.659e-05,2]
[397169791,1765155034324,-3638.15,9.659e-05,2]
[397169792,1765155034333,-558.19,9.659e-05,2]
[397169793,1765155034342,-500.0,9.659e-05,2]
[397169794,1765155034351,-2084.03,9.659e-05,2]
[397169795,1765155034360,-3171.69,9.659e-05,2]
[397169796,1765155034370,-501.05619591,9.659e-05,2]
[397169797,1765155034379,-1168.73,9.659e-05,2]
[397169798,1765155034389,-500.0,9.659e-05,2]
[397169799,1765155034398,-500.0,9.659e-05,2]
[397169800,1765155034407,-500.0,9.659e-05,2]
[397169801,1765155034416,-500.0,9.659e-05,2]
[397169802,1765155034426,-1749.65,9.659e-05,2]
[397169803,1765155034435,-2895.57,9.659e-05,2]
[397169804,1765155034444,-801.52,9.659e-05,2]
[397169805,1765155034453,-500.0,9.659e-05,2]
[397169806,1765155034462,-1631.19,9.659e-05,2]
[397169808,1765155034471,-500.0,9.659e-05,2]
[397169810,1765155034480,-500.0,9.659e-05,2]
[397169811,1765155034489,-1968.6,9.659e-05,2]
[397169813,1765155034498,-500.0,9.659e-05,2]
[397169814,1765155034508,-615.29,9.659e-05,2]
[397169815,1765155034517,-798.33,9.659e-05,2]
[397169816,1765155034526,-7150.74,9.659e-05,2]
[397169817,1765155034535,-254.29481156,9.659e-05,2]
[397169818,1765155034544,-500.0,9.659e-05,2]
[397169819,1765155034553,-707.33,9.659e-05,2]
[397169820,1765155034562,-894.02,9.659e-05,2]
[397169821,1765155034571,-500.0,9.659e-05,2]
[397169822,1765155034581,-500.0,9.659e-05,2]
[397169823,1765155034591,-338.33,9.659e-05,2]
[397169824,1765155034600,-1389.34,9.659e-05,2]
[397169825,1765155034610,-3865.16,9.659e-05,2]
[397169826,1765155034623,-500.0,9.659e-05,2]
[397169827,1765155034632,-600.11,9.659e-05,2]
[397169828,1765155034641,-500.0,9.659e-05,2]
[397169830,1765155034650,-500.0,9.659e-05,2]
[397169831,1765155034661,-1887.56,9.659e-05,2]
[397169832,1765155034670,-1343.48,9.659e-05,2]
[397169833,1765155034679,-1340.2,9.659e-05,2]
[397169834,1765155034689,-500.0,9.659e-05,2]
[397169835,1765155034698,-500.0,9.659e-05,2]
[397169836,1765155034707,-500.0,9.659e-05,2]
[397169837,1765155034717,-500.0,9.659e-05,2]
[397169838,1765155034726,-1615.71,9.659e-05,2]
[397169839,1765155034735,-614.03,9.659e-05,2]
[397169840,1765155034744,-165.03677029,9.659e-05,2]
[397169841,1765155034753,-500.0,9.659e-05,2]
[397169842,1765155034762,-15151.47,9.659e-05,2]
[397169843,1765155034771,-1020.62,9.659e-05,2]
[397169844,1765155034780,-500.0,9.659e-05,2]
[397169845,1765155034789,-4972.66,9.66e-05,2]
[397169846,1765155034799,-2501.53,9.66e-05,2]
[397169847,1765155034808,-4464.05,9.66e-05,2]
[397169848,1765155034817,-1105.09,9.66e-05,2]
[397169849,1765155034827,-1531.58,9.66e-05,2]
[397169850,1765155034836,-1668.09,9.66e-05,2]
[397169851,1765155034845,-2415.02,9.66e-05,2]
[397169852,1765155034854,-2322.29,9.66e-05,2]
[397169853,1765155034864,-781.51,9.66e-05,2]
[397169854,1765155034873,-2955.3,9.66e-05,2]
[397169855,1765155034882,-1659.36,9.66e-05,2]
[397169856,1765155034891,-1327.79,9.66e-05,2]
[397169857,1765155034901,-11429.43,9.66e-05,2]
[397169858,1765155034910,-500.0,9.66e-05,2]
[397169859,1765155034920,-3024.72,9.66e-05,2]
[397169860,1765155034930,-23437.06,9.66e-05,2]
[397169861,1765155034939,-3458.39,9.66e-05,2]
[397169862,1765155034948,-2648.46,9.66e-05,2]
[397169863,1765155034958,-670.52,9.66e-05,2]
[397169864,1765155034967,-500.0,9.66e-05,2]
[397169865,1765155034977,-500.0,9.66e-05,2]
[397169866,1765155034986,-1926.94,9.66e-05,2]
[397169867,1765155034995,-4321.83,9.66e-05,2]
[397169868,1765155035004,-5000.0,9.66e-05,2]
[397169869,1765155035014,-3285.94,9.66e-05,2]
[397169870,1765155035023,-1299.2,9.66e-05,2]
[397169871,1765155035032,-2125.45,9.66e-05,2]
[397169872,1765155035043,-3281.88,9.755e-05,2]
[397169873,1765155035052,-2142.54557697,9.894e-05,2]
[397169874,1765155035061,-500.0,9.931e-05,2]
[397169875,1765155035071,-4473.61,9.931e-05,2]
[397169876,1765155035082,-1314.49,9.931e-05,2]
[397169877,1765155035092,-783.84,9.931e-05,2]
[397169878,1765155035102,-500.0,9.931e-05,2]
[397169879,1765155035112,-6513.64,9.931e-05,2]
[397169880,1765155035121,-500.0,9.931e-05,2]
[397169881,1765155035130,-530.1287252,9.931e-05,2]
[397169882,1765155035145,-404.05,9.931e-05,2]
[397169883,1765155035156,-1006.53,9.931e-05,2]
[397169897,1765155038555,-435.13124528,9.383e-05,2]
[397169898,1765155038610,-670.10875472,9.383e-05,2]
[397169899,1765155038621,-1242.58814866,9.383e-05,2]
[397169900,1765155038714,-141.63185134,9.383e-05,2]
[397169901,1765155038725,-1174.8,9.384e-05,2]
[397169902,1765155038734,-1385.43,9.384e-05,2]
[397169903,1765155038743,-2293.07,9.385e-05,2]
[397169904,1765155038753,-98953.14,9.386e-05,2]
[397169905,1765155038763,-1105.24,9.657e-05,2]
[397169906,1765155038772,-1384.22,9.657e-05,2]
[397169907,1765155038781,-1174.8,9.658e-05,2]
[397169908,1765155038790,-1385.43,9.658e-05,2]
[397169909,1765155038800,-2293.07,9.659e-05,2]
[397169910,1765155038809,-98953.14,9.66e-05,2]
[397169911,1765155038818,-6944.4412748,9.931e-05,2]
[397169912,1765155038827,-3767.1,9.931e-05,2]
[397169913,1765155038837,-558.4,9.931e-05,2]
[397169914,1765155038846,-500.0,9.931e-05,2]
[397169915,1765155038856,-1105.24,9.931e-05,2]
[397169916,1765155038865,-1384.22,9.931e-05,2]
[397169917,1765155038875,-500.0,9.932e-05,2]
[397169918,1765155038884,-500.0,9.932e-05,2]
[397169919,1765155038894,-500.0,9.932e-05,2]
[397169920,1765155038904,-500.0,9.932e-05,2]
[397169921,1765155038913,-555.03,9.932e-05,2]
[397169922,1765155038923,-535.07,9.932e-05,2]
[397169923,1765155038933,-500.0,9.932e-05,2]
[397169924,1765155038943,-500.0,9.932e-05,2]
[397169925,1765155038952,-500.0,9.932e-05,2]
[397169926,1765155038962,-778.69,9.932e-05,2]
[397169927,1765155038972,-500.0,9.932e-05,2]
[397169928,1765155038982,-500.0,9.932e-05,2]
[397169929,1765155038992,-500.0,9.932e-05,2]
[397169930,1765155039001,-500.0,9.932e-05,2]
[397169931,1765155039011,-812.12,9.932e-05,2]
[397169932,1765155039020,-948.58,9.932e-05,2]
[397169933,1765155039031,-1996.46,9.932e-05,2]
[397169934,1765155039040,-500.0,9.932e-05,2]
[397169935,1765155039049,-500.0,9.932e-05,2]
[397169936,1765155039059,-384.07352367,9.932e-05,2]
[397169937,1765155039068,-500.0,9.932e-05,2]
[397169938,1765155039079,-4555.52,9.932e-05,2]
[397169939,1765155039088,-2012.32,9.932e-05,2]
[397169940,1765155039098,-500.0,9.932e-05,2]
[397169941,1765155039108,-853.09,9.932e-05,2]
[397169942,1765155039117,-500.0,9.932e-05,2]
[397169943,1765155039126,-518.64,9.932e-05,2]
[397169944,1765155039135,-238.71046145,9.932e-05,2]
[397169945,1765155039144,-205.22457573,9.932e-05,2]
[397169946,1765155039153,-1651.15,9.932e-05,2]
[397169947,1765155039162,-500.0,9.932e-05,2]
[397169948,1765155039172,-707.21,9.932e-05,2]
[397169949,1765155039181,-7552.03,9.932e-05,2]
[397169950,1765155039190,-593.86,9.932e-05,2]
[397169951,1765155039199,-688.58,9.932e-05,2]
[397169952,1765155039209,-1218.94,9.932e-05,2]
[397169953,1765155039218,-828.0,9.932e-05,2]
[397169954,1765155039228,-500.0,9.932e-05,2]
[397169955,1765155039237,-1250.38,9.932e-05,2]
[397169956,1765155039246,-500.0,9.932e-05,2]
[397169957,1765155039254,-1123.54,9.932e-05,2]
[397169958,1765155039264,-4419.66,9.932e-05,2]
[397169959,1765155039273,-2693.14,9.932e-05,2]
[397169960,1765155039282,-500.0,9.932e-05,2]
[397169961,1765155039290,-500.0,9.932e-05,2]
[397169962,1765155039299,-632.23,9.932e-05,2]
[397169963,1765155039309,-500.0,9.932e-05,2]
[397169964,1765155039319,-1474.06,9.932e-05,2]
[397169966,1765155039329,-500.0,9.932e-05,2]
[397169967,1765155039337,-500.0,9.932e-05,2]
[397169968,1765155039346,-1566.9,9.932e-05,2]
[397169969,1765155039355,-500.0,9.932e-05,2]
[397169970,1765155039365,-1065.38,9.932e-05,2]
[397169971,1765155039374,-500.0,9.932e-05,2]
[397169972,1765155039383,-1245.91,9.932e-05,2]
[397169973,1765155039391,-500.0,9.932e-05,2]
[397169974,1765155039400,-2033.25,9.932e-05,2]
[397169975,1765155039410,-500.0,9.932e-05,2]
[397169976,1765155039419,-1744.36,9.932e-05,2]
[397169977,1765155039428,-500.0,9.932e-05,2]
[397169978,1765155039437,-1174.8,9.932e-05,2]
[397169979,1765155039446,-1385.43,9.932e-05,2]
[397169980,1765155039455,-500.0,9.932e-05,2]
[397169981,1765155039463,-1517.1,9.933e-05,2]
[397169982,1765155039472,-635.55,9.933e-05,2]
[397169983,1765155039481,-500.0,9.933e-05,2]
[397169984,1765155039490,-651.52,9.933e-05,2]
[397169985,1765155039499,-675.12,9.933e-05,2]
[397169986,1765155039509,-500.0,9.933e-05,2]
[397169987,1765155039517,-573.78,9.933e-05,2]
[397169988,1765155039526,-598.91,9.933e-05,2]
[397169990,1765155039536,-655.06,9.933e-05,2]
[397169992,1765155039544,-500.0,9.933e-05,2]
[397169994,1765155039554,-500.0,9.933e-05,2]
[397169996,1765155039563,-2479.96,9.933e-05,2]
[397169997,1765155039572,-500.0,9.933e-05,2]
[397169999,1765155039581,-500.0,9.933e-05,2]
[397170000,1765155039590,-500.0,9.933e-05,2]
[397170002,1765155039599,-1586.79,9.933e-05,2]
[397170004,1765155039608,-643.25,9.933e-05,2]
[397170006,1765155039622,-500.0,9.933e-05,2]
[397170008,1765155039631,-500.0,9.933e-05,2]
[397170010,1765155039640,-500.0,9.933e-05,2]
[397170012,1765155039649,-500.0,9.933e-05,2]
[397170014,1765155039668,-500.0,9.933e-05,2]
[397170017,1765155039677,-1105.51,9.933e-05,2]
[397170019,1765155039687,-724.64,9.933e-05,2]
[397170020,1765155039698,-1076.28,9.933e-05,2]
[397170022,1765155039708,-1053.25,9.933e-05,2]
[397170025,1765155039717,-500.0,9.933e-05,2]
[397170026,1765155039726,-613.59,9.933e-05,2]
[397170028,1765155039735,-1245.12,9.933e-05,2]
[397170030,1765155039745,-500.0,9.933e-05,2]
[397170032,1765155039754,-500.0,9.933e-05,2]
[397170034,1765155039763,-1427.87,9.933e-05,2]
[397170036,1765155039772,-1159.43,9.933e-05,2]
[397170038,1765155039781,-500.0,9.933e-05,2]
[397170040,1765155039791,-2336.35,9.933e-05,2]
[397170042,1765155039800,-1368.67,9.933e-05,2]
[397170044,1765155039809,-500.0,9.933e-05,2]
[397170046,1765155039819,-856.74,9.933e-05,2]
[397170048,1765155039829,-508.862523,9.933e-05,2]
[397170050,1765155039839,-775.26,9.933e-05,2]
[397170052,1765155039849,-2340.81,9.933e-05,2]
[397170054,1765155039858,-551.29,9.933e-05,2]
[397170056,1765155039867,-533.14,9.933e-05,2]
[397170058,1765155039876,-500.0,9.933e-05,2]
[397170060,1765155039885,-1957.28,9.933e-05,2]
[397170062,1765155039894,-1934.84,9.933e-05,2]
[397170064,1765155039903,-500.0,9.933e-05,2]
[397170066,1765155039913,-3638.15,9.933e-05,2]
[397170068,1765155039922,-558.19,9.933e-05,2]
[397170070,1765155039932,-500.0,9.933e-05,2]
[397170072,1765155039941,-2084.03,9.933e-05,2]
[397170074,1765155039950,-3171.69,9.933e-05,2]
[397170076,1765155039962,-1168.73,9.933e-05,2]
[397170078,1765155039971,-500.0,9.933e-05,2]
[397170080,1765155039980,-500.0,9.933e-05,2]
[397170082,1765155039990,-500.0,9.933e-05,2]
[397170084,1765155039999,-501.40421896,9.933e-05,2]
[397170086,1765155040008,-1749.65,9.933e-05,2]
[397170088,1765155040017,-2895.57,9.933e-05,2]
[397170090,1765155040026,-801.52,9.933e-05,2]
[397170092,1765155040035,-500.0,9.933e-05,2]
[397170094,1765155040044,-1631.19,9.933e-05,2]
[397170095,1765155040053,-500.0,9.933e-05,2]
[397170096,1765155040061,-1968.6,9.933e-05,2]
[397170097,1765155040070,-500.0,9.933e-05,2]
[397170098,1765155040079,-615.29,9.933e-05,2]
[397170099,1765155040088,-798.33,9.933e-05,2]
[397170100,1765155040097,-6587.03072562,9.933e-05,2]
[397183415,1765155182620,154.26,5.1e-05,2]
[397188053,1765155244517,154.26,5.1e-05,2]
[397188068,1765155305212,154.26,5.1e-05,2]
[397188105,1765155364997,154.26,5.1e-05,2]
[397188106,1765155396307,1617.87097894,9.735e-05,3]
[397188107,1765155525196,9038.5192633,9.735e-05,3]
[397188151,1765156035115,-209.15741154,7.064e-05,2]
[397188152,1765156036081,-43.50965764,7.064e-05,2]
[397188153,1765156036102,-211.0,7.09e-05,2]
[397188154,1765156036125,-157.72,7.357e-05,2]
[397188155,1765156036147,-252.66930314,8.025e-05,2]
[397188156,1765156041778,-62.76069686,8.025e-05,2]
[397188157,1765156041801,-473.15,8.694e-05,2]
[397188158,1765156041822,-298.14714163,9.064e-05,2]
[397188159,1765156041841,-192.3866688,9.205e-05,2]
[397188160,1765156041860,-192.3866688,9.205e-05,2]
[397188161,1765156041881,-630.86,9.363e-05,2]
[397188162,1765156041900,-300.0,9.378e-05,2]
[397188163,1765156041920,-1200.0,9.378e-05,2]
[397188164,1765156041940,-300.0,9.378e-05,2]
[397188165,1765156041965,-500.0,9.379e-05,2]
[397188166,1765156041983,-448.50379478,9.379e-05,2]
[397188167,1765156042008,-500.0,9.379e-05,2]
[397188168,1765156042028,-500.0,9.379e-05,2]
[397188169,1765156042048,-500.0,9.379e-05,2]
[397188170,1765156042070,-294.71902922,9.379e-05,2]
[397188171,1765156042089,-506.33773567,9.379e-05,2]
[397188172,1765156042112,-159.49825271,9.38e-05,2]
[397188173,1765156042132,-500.0,9.38e-05,2]
[397188174,1765156042154,-3914.41,9.38e-05,2]
[397188175,1765156042174,-1150.18,9.38e-05,2]
[397188176,1765156042195,-685.86,9.38e-05,2]
[397188177,1765156042216,-500.0,9.38e-05,2]
[397188178,1765156042236,-1899.81,9.38e-05,2]
[397188179,1765156042259,-392.15316141,9.38e-05,2]
[397188180,1765156046121,-950.37683859,9.38e-05,2]
[397188181,1765156046142,-852.03775867,9.38e-05,2]
[397188231,1765156143535,250.0,9.734e-05,3]
[397188238,1765156157102,-150.0,7.361e-05,2]
[397188240,1765156157549,-257.0271805,8.03e-05,2]
[397188241,1765156158092,-18.2628195,8.03e-05,2]
[397188242,1765156158115,-412.93,8.7e-05,2]
[397188243,1765156158137,-550.57,9.369e-05,2]
[397188244,1765156158158,-300.0,9.378e-05,2]
[397188245,1765156158179,-500.0,9.379e-05,2]
[397188246,1765156158200,-500.0,9.379e-05,2]
[397188248,1765156158221,-3812.74,9.379e-05,2]
[397188249,1765156158241,-268.20607516,9.379e-05,2]
[397188300,1765156231674,-150.0,7.356e-05,2]
[397188301,1765156231684,-212.0,7.356e-05,2]
[397188302,1765156231693,-246.12068738,7.69e-05,2]
[397188303,1765156231702,-239.93,8.024e-05,2]
[397188304,1765156231711,-359.9,8.693e-05,2]
[397188305,1765156231721,-479.87,9.362e-05,2]
[397188307,1765156231731,-300.0,9.378e-05,2]
[397188308,1765156231739,-1200.0,9.378e-05,2]
[397188309,1765156231749,-834.04392484,9.379e-05,2]
[397188310,1765156231757,-657.28,9.379e-05,2]
[397188311,1765156231766,-500.0,9.379e-05,2]
[397188312,1765156231775,-295.71426301,9.379e-05,2]
[397188313,1765156231785,-500.0,9.379e-05,2]
[397188314,1765156231794,-5620.28,9.379e-05,2]
[397188315,1765156231803,-500.0,9.379e-05,2]
[397188316,1765156231813,-4908.83,9.379e-05,2]
[397188317,1765156231822,-500.0,9.379e-05,2]
[397188318,1765156231831,-710.61,9.379e-05,2]
[397188319,1765156231840,-7774.51,9.379e-05,2]
[397188320,1765156231850,-500.0,9.379e-05,2]
[397188321,1765156231860,-500.0,9.379e-05,2]
[397188322,1765156231869,-1211.19,9.379e-05,2]
[397188323,1765156231878,-1760.78,9.38e-05,2]
[397188324,1765156231887,-193.6829586,9.38e-05,2]
[397188325,1765156231911,-219.4911885,9.38e-05,2]
[397188327,1765156237786,-154.69905498,9.378e-05,2]
[397188328,1765156237797,-199.41322547,9.378e-05,2]
[397188329,1765156237807,-500.0,9.379e-05,2]
[397188330,1765156237816,-211.01628055,9.379e-05,2]
[397188331,1765156237921,-200.26828859,9.379e-05,2]
[397188332,1765156237932,-1276.12543086,9.379e-05,2]
[397188333,1765156237942,-342.36012199,9.38e-05,2]
[397188334,1765156237953,-418.49770858,9.38e-05,2]
[397188335,1765156237987,-488.04394154,9.38e-05,2]
[397188336,1765156238010,-1327.46,9.379e-05,2]
[397188337,1765156238020,-310.96408079,9.38e-05,2]
[397188338,1765156238030,-1746.9,9.38e-05,2]
[397188339,1765156238039,-500.0,9.38e-05,2]
[397188340,1765156238050,-375.95253505,9.38e-05,2]
[397188341,1765156238062,-124.04746495,9.38e-05,2]
[397188342,1765156238072,-2428.16397405,9.38e-05,2]
[397188549,1765156241158,-1557.91602595,9.38e-05,2]
[397188551,1765156241167,-746.45,9.38e-05,2]
[397188553,1765156241177,-618.8,9.38e-05,2]
[397188555,1765156241186,-2187.45180216,9.38e-05,2]
[397188559,1765156241214,-4420.57819784,9.38e-05,2]
[397188561,1765156241223,-519.63,9.38e-05,2]
[397188563,1765156241232,-1066.57,9.38e-05,2]
[397188565,1765156241242,-1094.08,9.38e-05,2]
[397188567,1765156241251,-602.5,9.38e-05,2]
[397188568,1765156241259,-2356.5,9.38e-05,2]
[397188569,1765156241268,-724.5,9.38e-05,2]
[397188570,1765156241277,-2342.71,9.38e-05,2]
[397188571,1765156241286,-2902.25529105,9.38e-05,2]
[397188572,1765156241378,-23.23971239,9.38e-05,2]
[397188731,1765156242993,-941.71499656,9.38e-05,2]
[397188733,1765156243004,-553.2,9.38e-05,2]
[397188735,1765156243015,-1371.04,9.38e-05,2]
[397188737,1765156243024,-500.0,9.38e-05,2]
[397188739,1765156243033,-41.72500344,9.38e-05,2]
[397188741,1765156243045,-458.27499656,9.38e-05,2]
[397188744,1765156243055,-435.93500344,9.38e-05,2]
[397189027,1765156245891,-358.49902386,9.379e-05,2]
[397201705,1765156382279,190.2,5.1e-05,2]
[397201844,1765156383659,190.19,5.1e-05,2]
[397201933,1765156443775,190.2,5.1e-05,2]
[397202036,1765156609515,2000.0,0.0001,3]
[397202051,1765156628619,2000.0,0.00011,6]
[397202060,1765156648636,2000.0,0.00013,9]
[397202084,1765156700587,2000.0,9.3e-05,3]
[397202139,1765157158076,-150.0,7.373e-05,2]
[397202140,1765157158099,-104.78245712,7.373e-05,2]
[397202233,1765157343532,250.0,9.999e-05,3]
[397202238,1765157347107,-150.0,7.352e-05,2]
[397202239,1765157347128,-108.21754288,7.373e-05,2]
[397202240,1765157347148,-244.49435865,7.457e-05,2]
[397202241,1765157347167,-359.29182677,7.694e-05,2]
[397202243,1765157349109,-94.57956793,7.694e-05,2]
[397202244,1765157349131,-265.65,8.021e-05,2]
[397202245,1765157349154,-221.57025052,8.231e-05,2]
[397202246,1765157349173,-1053.0,8.231e-05,2]
[397202247,1765157349193,-300.0,8.231e-05,2]
[397202248,1765157349212,-10643.5480634,8.232e-05,2]
[397202249,1765157349231,-500.0,8.394e-05,2]
[397202250,1765157349250,-500.0,8.394e-05,2]
[397202251,1765157349271,-300.0,8.395e-05,2]
[397202252,1765157349293,-300.0,8.395e-05,2]
[397202253,1765157349314,-300.0,8.395e-05,2]
[397202254,1765157349335,-300.0,8.395e-05,2]
[397202255,1765157349357,-300.0,8.395e-05,2]
[397202257,1765157349379,-300.0,8.395e-05,2]
[397202258,1765157349402,-300.0,8.395e-05,2]
[397202259,1765157349424,-300.0,8.395e-05,2]
[397202260,1765157349445,-300.0,8.395e-05,2]
[397202261,1765157349469,-300.0,8.395e-05,2]
[397202262,1765157349489,-300.0,8.395e-05,2]
[397202263,1765157349510,-300.0,8.395e-05,2]
[397202264,1765157349530,-300.0,8.395e-05,2]
[397202265,1765157349551,-300.0,8.395e-05,2]
[397202266,1765157349571,-300.0,8.395e-05,2]
[397202267,1765157349590,-1042.52661606,8.575e-05,2]
[397202268,1765157349609,-234.31640165,8.668e-05,2]
[397202269,1765157349629,-398.47,8.689e-05,2]
[397202270,1765157349647,-192.3866688,8.69e-05,2]
[397202271,1765157349667,-192.3866688,8.72e-05,2]
[397202272,1765157349685,-588.71898067,8.78e-05,2]
[397202273,1765157349706,-1059.69416521,8.78e-05,2]
[397202274,1765157349726,-1883.90073816,8.78e-05,2]
[397202275,1765157349747,-2940.65130847,8.78e-05,2]
[397202276,1765157349766,-356.92626382,8.78e-05,2]